bitfinex-derivatives/quotes_SOLF0:USTF0_20241215
["timestamp","ask_amount","ask_price","bid_price","bid_amount"]
[1734221125915,14.37191538,220.35,220.26,6.9778399]
[1734221126717,2.2697,220.3,220.26,6.9778399]
[1734221127420,14.37191538,220.35,220.28,6.9778399]
[1734221127621,2.2694,220.33,220.28,9.2477399]
[1734221131124,7.39407548,220.35,220.28,6.9778399]
[1734221131324,2.2695,220.32,220.28,6.9778399]
[1734221131921,2.2697,220.3,220.24,2.08]
[1734221132124,2.2697,220.3,220.27,6.9778399]
[1734221132919,2.2695,220.33,220.27,6.9778399]
[1734221133121,2.2695,220.33,220.29,6.9778399]
[1734221133621,41.55759511,220.39,220.31,6.9778399]
[1734221133822,2.08,220.38,220.31,6.9778399]
[1734221134325,2.2692,220.35,220.31,6.9778399]
[1734221135626,2.2692,220.35,220.3,2.2697]
[1734221135827,2.2692,220.35,220.31,6.9778399]
[1734221136126,2.2692,220.35,220.3,2.2697]
[1734221136327,2.2693,220.34,220.31,6.9778399]
[1734221138020,2.08,220.38,220.31,6.9778399]
[1734221138229,2.2691,220.36,220.31,9.2474399]
[1734221138726,2.08,220.38,220.31,6.9778399]
[1734221138923,6.9778399,220.37,220.29,9.2475399]
[1734221139624,2.2692,220.35,220.29,9.2475399]
[1734221139828,6.9778399,220.37,220.29,6.9778399]
[1734221140826,2.2695,220.33,220.29,6.9778399]
[1734221142526,6.9778399,220.37,220.29,6.9778399]
[1734221142721,2.2695,220.32,220.29,6.9778399]
[1734221144430,2.2696,220.31,220.29,6.9778399]
[1734221145834,2.2695,220.33,220.29,9.2476399]
[1734221146723,9.0578399,220.38,220.26,2.27]
[1734221146724,6.9778399,220.36,220.26,2.27]
[1734221146929,6.9778399,220.36,220.26,6.9778399]
[1734221147826,6.9778399,220.34,220.26,6.9778399]
[1734221148028,2.08,220.33,220.26,6.9778399]
[1734221149028,2.2698,220.3,220.26,6.9778399]
[1734221149533,2.2699,220.29,220.26,6.9778399]
[1734221151634,2.27,220.27,220.22,2.2705]
[1734221151832,2.08,220.28,220.22,6.9778399]
[1734221152432,2.2702,220.26,220.22,6.9778399]
[1734221152631,2.2702,220.26,220.2,2.2706]
[1734221152632,9.0578399,220.28,220.21,6.9778399]
[1734221153834,2.2702,220.25,220.2,2.2706]
[1734221154131,2.2702,220.25,220.21,6.9778399]
[1734221155935,4.3502,220.25,220.21,6.9778399]
[1734221156142,2.08,220.25,220.21,9.2484399]
[1734221158443,6.9778399,220.24,220.06,38.36470866]
[1734221158643,6.9778399,220.16,220.04,4.4356]
[1734221158949,2.08,220.15,220.06,5.42758494]
[1734221159154,2.08,220.15,220.04,4.4356]
[1734221159352,2.08,220.15,220.07,6.9778399]
[1734221159748,2.08,220.15,220.09,6.9778399]
[1734221160449,2.08,220.15,220.1,2.2717]
[1734221160954,2.08,220.15,220.11,2.2716]
[1734221161351,2.08,220.14,220.11,2.2716]
[1734221162549,2.08,220.13,220.11,2.2716]
[1734221162853,6.9778399,220.12,220.04,4.4356]
[1734221163053,6.9778399,220.12,220.05,6.9778399]
[1734221163946,2.2718,220.1,220.05,6.9778399]
[1734221164850,51.96,220.32,220.01,5.45047908]
[1734221164851,13.68,220.33,220.09,6.9778399]
[1734221165045,201.13566739,220.34,220.1,5.0088]
[1734221165046,6.9778399,220.29,220.1,5.0088]
[1734221165248,2.08,220.26,220.18,6.9778399]
[1734221165460,2.2704,220.23,220.18,6.9778399]
[1734221165755,6.9778399,220.25,220.18,6.9778399]
[1734221166257,6.9778399,220.25,220.16,9.2489399]
[1734221166461,2.2706,220.21,220.15,2.2712]
[1734221166758,9.0578399,220.21,220.1,2.9288]
[1734221166957,9.0578399,220.21,220.12,9.2493399]
[1734221166958,2.2709,220.19,220.12,9.2493399]
[1734221167160,9.0578399,220.21,220.14,6.9778399]
[1734221167358,1.4852,220.26,220.16,6.9778399]
[1734221167554,8.4630399,220.26,220.18,6.9778399]
[1734221167759,2.08,220.25,220.18,6.9778399]
[1734221168150,2.2703,220.24,220.18,9.2487399]
[1734221168456,9.2481399,220.24,220.18,2.2709]
[1734221170555,2.08,220.23,220.18,2.2709]
[1734221171162,4.3504,220.23,220.18,2.2709]
[1734221171959,2.08,220.23,220.18,2.2709]
[1734221172263,2.08,220.23,220.19,2.2708]
[1734221172954,2.08,220.24,220.2,2.2707]
[1734221173861,2.08,220.24,220.19,2.2708]
[1734221174051,2.08,220.24,220.18,6.9778399]
[1734221174052,9.0578399,220.24,220.16,6.9778399]
[1734221175660,2.2705,220.23,220.17,2.271]
[1734221176058,9.0578399,220.24,220.17,2.271]
[1734221177662,2.2705,220.22,220.17,2.271]
[1734221181259,2.2707,220.2,220.15,2.2712]
[1734221182370,2.2707,220.2,220.16,2.2711]
[1734221184070,2.08,220.24,220.18,6.9778399]
[1734221185562,4.3503,220.24,220.19,2.2707]
[1734221187164,2.2704,220.23,220.19,2.2707]
[1734221188364,2.2704,220.23,220.18,6.9778399]
[1734221188365,2.2704,220.23,220.18,2.2709]
[1734221192466,2.08,220.24,220.16,6.9778399]
[1734221192666,2.2707,220.21,220.16,9.2489399]
[1734221193669,6.9778399,220.19,220.1,2.9288]
[1734221193968,6.9778399,220.17,220.1,2.9288]
[1734221194165,2.08,220.16,220.1,2.9288]
[1734221194566,2.2715,220.13,220.1,2.9288]
[1734221195368,2.2713,220.15,220.11,6.9778399]
[1734221198966,2.2716,220.12,220.1,1.4752]
[1734221199169,6.9778399,220.15,220.08,5.5693832]
[1734221199865,6.9778399,220.13,220.06,2.08]
[1734221200067,6.9778399,220.11,220.05,5.37302031]
[1734221200466,2.2721,220.07,220.04,1.4047]
[1734221200672,6.9778399,220.09,219.99,1.4257]
[1734221200871,6.9778399,220.09,220.01,6.9778399]
[1734221201376,6.9778399,220.07,219.99,1.4257]
[1734221201572,6.9778399,220.05,219.99,1.4257]
[1734221201968,2.08,220.07,219.87,6.24348095]
[1734221201969,6.9778399,220.03,219.87,6.24348095]
[1734221202271,6.9778399,220.03,219.8,160.63662375]
[1734221202272,6.9778399,219.99,219.88,4.9802]
[1734221202470,6.9778399,219.99,219.9,6.9778399]
[1734221203172,2.08,220.0,219.89,2.08]
[1734221203577,2.2733,219.96,219.91,5.44923845]
[1734221204175,2.2735,219.94,219.89,2.08]
[1734221204375,2.2735,219.94,219.88,3.6771]
[1734221204880,2.08,219.96,219.88,1.4032]
[1734221205074,2.2733,219.95,219.89,2.2739]
[1734221205271,2.08,219.99,219.88,6.87288111]
[1734221205469,2.08,219.99,219.83,2.08]
[1734221205673,2.08,219.99,219.85,12.4560034]
[1734221206179,2.08,219.99,219.87,5.43856616]
[1734221206375,2.08,219.99,219.88,13.0020034]
[1734221206877,2.08,219.99,219.91,10.9220034]
[1734221207279,4.3529,219.99,219.92,2.2735]
[1734221207678,2.2729,219.99,219.92,2.2735]
[1734221208981,2.2729,219.99,219.94,2.2734]
[1734221209183,2.08,220.01,219.94,2.2734]
[1734221209497,2.2728,220.0,219.94,2.2734]
[1734221212712,2.08,220.01,219.96,2.2732]
[1734221212913,2.08,220.01,219.91,13.0020034]
[1734221214627,4.3527,220.01,219.95,2.2732]
[1734221215918,2.2728,220.0,219.95,2.2732]
[1734221217012,2.2729,219.99,219.93,2.2734]
[1734221217223,2.08,220.01,219.93,2.2734]
[1734221217807,2.273,219.98,219.93,2.2734]
[1734221218213,2.08,220.01,219.92,2.2736]
[1734221218612,2.08,220.01,219.88,1.527]
[1734221218613,2.273,219.98,219.9,2.08]
[1734221219209,2.08,220.01,219.88,12.4490034]
[1734221219810,2.2732,219.97,219.93,2.2735]
[1734221220317,2.273,219.98,219.94,2.2734]
[1734221220513,5.3600083,220.06,219.91,10.9220034]
[1734221220717,2.08,220.05,219.91,10.9220034]
[1734221220904,2.2726,220.03,219.97,2.273]
[1734221221390,5.3600083,220.06,219.93,2.08]
[1734221221391,2.08,220.04,219.93,2.08]
[1734221221599,2.2727,220.01,219.96,2.2732]
[1734221222590,2.2726,220.02,219.97,2.2731]
[1734221223095,2.2727,220.01,219.95,2.2732]
[1734221223486,2.08,220.04,219.93,2.08]
[1734221224086,2.2727,220.01,219.97,2.2731]
[1734221224291,2.08,220.04,219.97,2.2731]
[1734221224792,2.08,220.04,219.98,2.273]
[1734221225294,9.2593286,220.03,219.98,2.273]
[1734221226592,2.2726,220.02,219.98,2.273]
[1734221230593,5.3600083,220.06,220.02,2.2726]
[1734221230594,2.2722,220.06,220.02,2.2726]
[1734221230798,2.08,220.06,220.02,2.2726]
[1734221231100,10.4555286,220.09,220.02,6.9868286]
[1734221231502,10.4555286,220.09,219.98,2.08]
[1734221231503,2.272,220.08,220.0,6.9868286]
[1734221231798,6.9868286,220.07,220.0,6.9868286]
[1734221232800,6.9868286,220.07,219.98,9.0668286]
[1734221233405,2.2724,220.05,220.01,2.2726]
[1734221234805,2.2725,220.04,219.99,2.2729]
[1734221235501,2.2723,220.05,219.98,9.0668286]
[1734221235701,6.9868286,220.07,219.98,9.0668286]
[1734221236603,2.2723,220.06,220.01,2.2726]
[1734221236798,6.9868286,220.07,220.01,2.2726]
[1734221237705,6.9868286,220.05,219.99,2.2728]
[1734221238009,2.08,220.05,219.98,6.9868286]
[1734221238305,2.08,220.05,220.01,2.2726]
[1734221238510,2.08,220.05,220.0,6.9868286]
[1734221238704,4.3522,220.07,220.0,6.9868286]
[1734221238909,2.08,220.07,220.0,6.9868286]
[1734221239207,2.08,220.07,220.02,2.2725]
[1734221239403,2.08,220.07,220.0,6.9868286]
[1734221239612,2.08,220.07,220.03,2.2725]
[1734221239908,3.4687,220.09,220.0,6.9868286]
[1734221240709,2.2721,220.08,220.04,2.2723]
[1734221241309,2.2718,220.1,220.02,6.9868286]
[1734221241509,4.3518,220.1,220.04,6.9868286]
[1734221242407,4.3518,220.1,220.05,2.2722]
[1734221242802,0.31553,220.14,220.08,6.9868286]
[1734221243010,0.31553,220.14,220.11,6.9868286]
[1734221243503,0.31553,220.14,220.12,2.2715]
[1734221244306,0.31553,220.14,220.12,2.2716]
[1734221244509,0.31553,220.14,220.03,1.3984]
[1734221244510,0.31553,220.14,220.13,6.9868286]
[1734221245603,0.31553,220.14,220.13,9.2582286]
[1734221247309,9.0668286,220.23,220.18,2.2709]
[1734221248517,2.2705,220.22,220.18,2.2709]
[1734221250107,9.0668286,220.23,219.88,194.1265285]
[1734221250405,9.0668286,220.23,220.1,6.9868286]
[1734221250406,2.2712,220.16,220.1,6.9868286]
[1734221251617,2.2712,220.16,220.11,2.2717]
[1734221252308,2.2712,220.16,220.1,6.9868286]
[1734221252510,2.2712,220.16,220.12,2.2716]
[1734221253212,2.08,220.19,220.13,2.2714]
[1734221253412,9.0668286,220.19,220.13,2.2714]
[1734221253810,2.08,220.2,220.1,6.9868286]
[1734221254011,6.9868286,220.19,220.13,2.2714]
[1734221255310,2.271,220.18,220.12,6.9868286]
[1734221255615,6.9868286,220.17,220.1,9.2585286]
[1734221255815,2.2712,220.16,220.1,6.9868286]
[1734221256012,2.2712,220.16,220.11,2.2716]
[1734221257316,2.2713,220.15,220.1,9.2586286]
[1734221257513,2.08,220.16,220.1,6.9868286]
[1734221257716,6.9868286,220.15,220.06,6.9868286]
[1734221259213,2.2716,220.12,220.05,2.2722]
[1734221259415,2.08,220.12,220.04,6.9868286]
[1734221260517,2.08,220.12,220.06,6.9868286]
[1734221260714,2.2718,220.1,220.06,6.9868286]
[1734221263124,2.2719,220.09,220.06,6.9868286]
[1734221263312,2.08,220.12,220.04,6.9868286]
[1734221263719,6.9868286,220.11,220.04,6.9868286]
[1734221264617,2.272,220.08,220.04,6.9868286]
[1734221264920,6.9868286,220.11,220.04,6.9868286]
[1734221265121,2.2722,220.06,220.02,0.90900827]
[1734221265421,6.9868286,220.11,220.02,6.9868286]
[1734221265621,6.9868286,220.11,220.02,9.2594286]
[1734221265818,2.272,220.08,220.02,9.2594286]
[1734221268921,2.272,220.08,220.03,2.2725]
[1734221269318,2.2717,220.11,220.06,6.9868286]
[1734221269526,2.2717,220.11,220.06,9.2589286]
[1734221271029,2.2717,220.11,220.07,2.272]
[1734221272527,1.5065,220.16,220.08,6.9868286]
[1734221272732,2.8397,220.25,220.1,6.9868286]
[1734221272931,6.9868286,220.19,220.12,6.9868286]
[1734221273138,2.08,220.18,220.13,2.2714]
[1734221274133,1.4473,220.24,220.14,6.9868286]
[1734221274433,9.0668286,220.23,220.16,6.9868286]
[1734221274625,6.9868286,220.23,220.16,6.9868286]
[1734221274826,9.0668286,220.23,220.16,6.9868286]
[1734221275632,9.0668286,220.23,220.18,2.2709]
[1734221275633,11.3373286,220.23,220.18,2.2709]
[1734221275834,9.2573286,220.23,220.18,2.2709]
[1734221276631,9.2573286,220.23,220.17,2.271]
[1734221278333,9.2573286,220.23,220.16,6.9868286]
[1734221278540,3.7176,220.24,220.18,6.9868286]
[1734221279035,1.4473,220.24,220.18,6.9868286]
[1734221279244,2.2704,220.23,220.18,2.2709]
[1734221284436,6.9868286,220.23,220.16,4.3511]
[1734221285136,2.2707,220.21,220.17,2.271]
[1734221285536,2.2707,220.21,220.16,6.9868286]
[1734221285736,2.2708,220.2,220.16,6.9868286]
[1734221286438,6.9868286,220.23,220.14,6.9868286]
[1734221286637,1.4473,220.24,220.14,6.9868286]
[1734221286638,6.9868286,220.21,220.14,6.9868286]
[1734221287138,6.9868286,220.21,220.14,9.2581286]
[1734221287139,2.2709,220.19,220.14,9.2581286]
[1734221287335,2.2709,220.19,220.14,6.9868286]
[1734221287537,2.08,220.22,220.16,6.9868286]
[1734221289435,2.2707,220.2,220.14,6.9868286]
[1734221290443,2.2709,220.19,220.14,6.9868286]
[1734221290635,6.9868286,220.21,220.14,6.9868286]
[1734221291645,2.2708,220.19,220.14,9.2581286]
[1734221292147,6.9868286,220.21,220.14,6.9868286]
[1734221292741,2.2711,220.17,220.14,6.9868286]
[1734221293340,2.08,220.22,220.1,2.2718]
[1734221293341,2.2713,220.15,220.1,2.2718]
[1734221293548,2.2713,220.15,220.1,9.2586286]
[1734221293846,2.2713,220.15,220.11,2.2716]
[1734221294437,2.08,220.18,220.11,2.2716]
[1734221294742,2.2712,220.16,220.11,2.2716]
[1734221295235,2.08,220.18,220.11,2.2716]
[1734221295440,2.2713,220.15,220.11,2.2716]
[1734221296746,2.2713,220.15,220.1,6.9868286]
[1734221297039,2.2714,220.14,220.1,6.9868286]
[1734221297436,2.2714,220.14,220.1,9.2586286]
[1734221297641,2.2715,220.13,220.1,6.9868286]
[1734221301039,6.9868286,220.17,220.1,9.2585286]
[1734221301250,2.2714,220.14,220.1,6.9868286]
[1734221301646,2.2714,220.14,220.1,9.2585286]
[1734221305555,2.08,220.18,220.12,6.9868286]
[1734221305748,2.08,220.18,220.14,6.9868286]
[1734221305952,9.0668286,220.21,220.14,6.9868286]
[1734221306147,2.2708,220.19,220.15,2.2712]
[1734221307152,2.2708,220.19,220.11,2.08]
[1734221307153,2.08,220.22,220.16,6.9868286]
[1734221307349,10.5141286,220.24,220.16,6.9868286]
[1734221307751,10.5141286,220.24,220.17,2.271]
[1734221308653,2.2706,220.21,220.17,2.271]
[1734221309450,2.2706,220.21,220.15,6.9868286]
[1734221310258,2.2706,220.21,220.16,2.2711]
[1734221311748,6.9868286,220.21,220.13,6.9868286]
[1734221312157,6.9868286,220.19,220.11,6.9868286]
[1734221312458,2.2711,220.17,220.11,6.9868286]
[1734221312849,2.2711,220.17,220.13,2.2714]
[1734221315957,6.9868286,220.19,220.11,6.9868286]
[1734221316162,6.9868286,220.19,220.11,9.2584286]
[1734221316859,2.2713,220.15,220.11,9.2584286]
[1734221318967,2.08,220.2,220.11,6.9868286]
[1734221319265,2.2711,220.17,220.13,2.2714]
[1734221322766,6.9868286,220.19,220.12,2.2715]
[1734221322965,6.9868286,220.17,220.1,5.48841014]
[1734221323770,6.9868286,220.17,220.09,6.9868286]
[1734221323771,6.9868286,220.15,220.07,2.08]
[1734221323971,6.9868286,220.15,220.07,6.9868286]
[1734221325673,2.2715,220.13,220.09,2.2718]
[1734221326072,6.9868286,220.15,220.09,2.2718]
[1734221327377,6.9868286,220.15,220.08,7.73819698]
[1734221327769,2.08,220.16,220.08,5.46629698]
[1734221327970,2.08,220.16,220.09,2.2718]
[1734221328274,9.0668286,220.16,220.09,2.2718]
[1734221328877,2.2714,220.14,220.09,2.2718]
[1734221331178,2.2714,220.14,220.11,2.2716]
[1734221331371,2.2713,220.15,220.09,6.9868286]
[1734221333581,2.2713,220.15,220.11,2.2716]
[1734221334076,6.9868286,220.16,220.08,5.46629698]
[1734221334674,6.9868286,220.14,220.07,6.9868286]
[1734221335579,2.2716,220.12,220.08,2.272]
[1734221336483,2.2714,220.14,220.09,2.2718]
[1734221336679,1.5197,220.16,220.07,12.43319135]
[1734221336985,1.5197,220.16,220.09,6.9868286]
[1734221337484,8.5065286,220.16,220.09,6.9868286]
[1734221337684,2.2712,220.15,220.11,2.2716]
[1734221339291,8.5065286,220.16,220.08,6.9868286]
[1734221339589,6.9868286,220.14,220.07,5.44636275]
[1734221339786,2.08,220.13,220.07,5.44636275]
[1734221340185,2.2716,220.12,220.08,2.2719]
[1734221342493,2.2716,220.12,220.07,5.44636275]
[1734221342494,2.2717,220.11,220.07,2.272]
[1734221343192,2.2718,220.1,220.07,2.272]
[1734221344089,6.9868286,220.12,220.04,6.9868286]
[1734221344395,2.272,220.09,220.05,2.2723]
[1734221345899,2.272,220.09,220.06,2.2722]
[1734221346101,2.2718,220.1,220.04,6.9868286]
[1734221347097,2.2718,220.1,220.05,2.2722]
[1734221348202,2.272,220.08,220.04,9.2591286]
[1734221348403,6.9868286,220.11,220.02,8.4400286]
[1734221349097,6.9868286,220.11,220.03,2.2724]
[1734221349804,6.9868286,220.09,220.03,2.2724]
[1734221350004,9.0668286,220.09,220.03,2.2724]
[1734221350203,2.2723,220.05,220.0,14.69869935]
[1734221350401,9.0668286,220.09,220.0,12.42599935]
[1734221350899,2.2722,220.07,220.02,2.2726]
[1734221351303,1.5197,220.16,220.04,6.9868286]
[1734221351603,6.9868286,220.13,220.06,6.9868286]
[1734221352707,9.2583286,220.13,220.08,2.2719]
[1734221353502,2.2716,220.12,220.08,2.2719]
[1734221354205,2.08,220.15,220.05,2.2722]
[1734221354206,2.2719,220.1,220.05,2.2722]
[1734221354607,6.9868286,220.11,220.05,2.2722]
[1734221354805,6.9868286,220.11,220.03,2.2724]
[1734221354806,2.272,220.08,220.03,2.2724]
[1734221355105,2.272,220.08,220.02,6.9868286]
[1734221355806,2.2721,220.07,220.02,6.9868286]
[1734221356704,2.2721,220.07,220.03,2.2725]
[1734221357703,2.2722,220.06,220.02,2.2726]
[1734221358905,6.9868286,220.09,220.01,6.9868286]
[1734221359207,2.2723,220.05,220.01,9.2595286]
[1734221360906,2.08,220.11,220.01,6.9868286]
[1734221361108,2.08,220.11,220.03,2.2724]
[1734221361311,6.9868286,220.09,220.03,2.2724]
[1734221362407,2.08,220.09,220.01,6.9868286]
[1734221362602,9.0668286,220.09,220.03,6.9868286]
[1734221362803,6.9868286,220.09,220.03,6.9868286]
[1734221363710,9.2588286,220.09,220.05,2.2722]
[1734221365709,9.2588286,220.09,220.04,2.2724]
[1734221366414,9.2588286,220.09,220.05,2.2722]
[1734221368108,2.272,220.08,220.04,2.2724]
[1734221369610,2.2722,220.06,220.02,2.2725]
[1734221369811,6.9868286,220.09,220.0,12.42599935]
[1734221370613,6.9868286,220.09,220.01,2.2727]
[1734221370614,2.2723,220.05,220.01,2.2727]
[1734221370817,2.2723,220.05,220.0,12.42599935]
[1734221371313,6.9868286,220.05,220.0,5.43917075]
[1734221371509,6.9868286,220.05,219.97,9.0668286]
[1734221372318,6.9868286,220.05,219.98,5.49556676]
[1734221372822,2.2726,220.02,219.98,7.76856676]
[1734221373317,1.4275,220.08,219.99,6.9868286]
[1734221373522,1.4275,220.08,220.01,6.9868286]
[1734221374017,2.2723,220.05,220.01,9.2594286]
[1734221375121,2.2723,220.05,220.01,6.9868286]
[1734221375421,2.2724,220.04,220.0,2.2728]
[1734221376323,6.9868286,220.05,219.98,5.49556676]
[1734221376622,2.2726,220.02,219.98,7.76856676]
[1734221377422,2.2727,220.01,219.98,7.76856676]
[1734221379117,6.9868286,220.03,219.95,2.08]
[1734221380021,6.9868286,220.03,219.94,8.5087286]
[1734221380218,2.2728,220.0,219.96,2.2731]
[1734221380420,2.2728,220.0,219.94,10.5887286]
[1734221381323,2.2728,220.0,219.94,8.5087286]
[1734221381515,2.2728,220.0,219.94,10.5887286]
[1734221381715,2.2728,220.0,219.97,5.36886624]
[1734221382624,2.2728,220.0,219.97,7.64196624]
[1734221383624,2.2727,220.01,219.97,7.64196624]
[1734221385722,6.9868286,220.0,219.92,2.06]
[1734221386120,6.9868286,220.0,219.93,5.4514691]
[1734221386316,2.273,219.98,219.93,5.4514691]
[1734221386626,2.273,219.98,219.89,6.9868286]
[1734221386627,6.9868286,219.98,219.89,6.9868286]
[1734221387620,6.9868286,219.96,219.91,2.2736]
[1734221388027,6.9868286,219.96,219.89,6.9868286]
[1734221388228,2.2735,219.93,219.9,2.2738]
[1734221389128,6.9868286,219.96,219.9,2.2738]
[1734221389330,2.2734,219.94,219.9,2.2738]
[1734221390031,2.273,219.99,219.94,2.2734]
[1734221390230,2.273,219.99,219.91,6.9868286]
[1734221390826,2.273,219.99,219.94,2.2734]
[1734221395126,2.273,219.99,219.92,6.9868286]
[1734221395127,2.08,220.0,219.96,2.2732]
[1734221395335,9.0668286,220.0,219.96,2.2732]
[1734221395735,2.975,220.07,219.98,2.273]
[1734221395927,6.9868286,220.03,219.98,2.273]
[1734221396332,2.2726,220.02,219.98,2.273]
[1734221397331,7.3272,220.07,220.02,2.2726]
[1734221397531,1.5309,220.07,220.0,6.9868286]
[1734221397834,2.08,220.07,220.0,6.9868286]
[1734221398028,2.08,220.07,220.02,2.2726]
[1734221398637,2.2721,220.07,220.02,2.2726]
[1734221399528,6.9868286,220.06,220.02,2.2726]
[1734221399730,9.2590286,220.06,220.02,2.2726]
[1734221400133,6.9868286,220.04,220.0,2.2727]
[1734221400438,6.9868286,220.04,219.96,6.9868286]
[1734221400439,2.2725,220.03,219.96,6.9868286]
[1734221400938,6.9868286,220.04,219.96,6.9868286]
[1734221400939,2.2727,220.01,219.97,2.2731]
[1734221402035,9.2596286,220.0,219.96,2.2732]
[1734221402846,6.9868286,220.0,219.93,2.08]
[1734221403035,6.9868286,219.98,219.91,9.0668286]
[1734221403236,6.9868286,219.98,219.9,1.4753]
[1734221403432,6.9868286,219.96,219.9,1.4753]
[1734221403944,6.9868286,219.96,219.91,2.2737]
[1734221404841,2.2734,219.95,219.91,2.2737]
[1734221407840,2.2734,219.95,219.89,12.50643554]
[1734221408042,4.3532,219.97,219.89,12.50643554]
[1734221408243,2.08,219.97,219.91,2.2737]
[1734221409745,2.2732,219.96,219.91,2.2737]
[1734221410137,2.2733,219.95,219.89,12.50643554]
[1734221410339,2.08,219.97,219.84,1.4391]
[1734221410639,6.9868286,219.94,219.85,6.9868286]
[1734221411036,2.2737,219.91,219.87,2.2741]
[1734221413241,6.9868286,219.94,219.85,6.9868286]
[1734221413444,3.4571,220.0,219.89,6.9868286]
[1734221413742,6.9868286,219.98,219.91,6.9868286]
[1734221413942,2.2733,219.96,219.92,2.2736]
[1734221417744,3.4571,220.0,219.91,6.9868286]
[1734221417945,3.4571,220.0,219.93,6.9868286]
[1734221419144,1.3971,220.0,219.93,6.9868286]
[1734221419352,2.2728,220.01,219.86,5.34576718]
[1734221419353,2.06,220.01,219.95,6.9868286]
[1734221419747,2.06,220.01,219.97,2.2731]
[1734221421447,2.2725,220.03,219.98,2.2729]
[1734221422751,11.3192286,220.04,219.99,2.2728]
[1734221423151,2.9275,220.09,219.99,6.9868286]
[1734221423351,4.332,220.08,220.03,2.2725]
[1734221423850,2.272,220.08,220.03,2.2725]
[1734221424047,2.2721,220.07,220.02,9.2594286]
[1734221425248,2.2721,220.07,220.03,2.2725]
[1734221425848,2.9275,220.09,220.03,2.2725]
[1734221426053,2.272,220.09,220.02,6.9868286]
[1734221426852,2.272,220.08,220.03,2.2725]
[1734221428349,2.2719,220.09,220.04,2.2723]
[1734221428856,9.0468286,220.14,220.06,6.9868286]
[1734221429157,2.06,220.14,220.08,6.9868286]
[1734221429356,6.9868286,220.16,220.08,6.9868286]
[1734221429556,2.2714,220.13,220.09,2.2718]
[1734221433263,2.2713,220.15,220.1,9.2586286]
[1734221433462,1.4844,220.2,220.1,6.9868286]
[1734221433463,9.0468286,220.18,220.1,6.9868286]
[1734221433851,2.06,220.18,220.1,6.9868286]
[1734221434059,9.0468286,220.18,220.1,6.9868286]
[1734221435562,2.2713,220.15,220.1,9.2586286]
[1734221439568,2.2713,220.15,220.12,6.9868286]
[1734221440862,2.2711,220.16,220.12,6.9868286]
[1734221442071,10.5312286,220.2,220.12,6.9868286]
[1734221442277,2.2713,220.15,220.12,6.9868286]
[1734221446575,2.2711,220.17,220.12,9.2583286]
[1734221446775,10.5312286,220.2,220.12,9.2583286]
[1734221446972,8.4712286,220.2,220.12,9.2583286]
[1734221447572,2.2712,220.16,220.12,9.2583286]
[1734221449271,2.2712,220.16,220.12,6.9868286]
[1734221451079,1.4844,220.2,220.14,6.9868286]
[1734221452170,2.2709,220.18,220.14,9.2581286]
[1734221452974,13.66,220.37,220.16,9.2579286]
[1734221453180,50.63210035,220.25,220.18,6.9868286]
[1734221453980,2.2706,220.22,220.18,6.9868286]
[1734221454774,2.2706,220.22,220.18,9.2577286]
[1734221457076,2.2706,220.22,220.18,6.9868286]
[1734221457379,2.2708,220.2,220.14,2.06]
[1734221457580,2.2708,220.2,220.16,6.9868286]
[1734221459072,2.2708,220.19,220.16,6.9868286]
[1734221459271,6.9868286,220.21,220.11,1.4696]
[1734221459472,6.9868286,220.19,220.12,9.2583286]
[1734221459677,1.4658,220.21,220.14,6.9868286]
[1734221459877,1.4658,220.21,220.14,9.2581286]
[1734221460981,2.2709,220.19,220.14,9.2581286]
[1734221461381,2.2709,220.19,220.16,6.9868286]
[1734221461979,2.2709,220.19,220.14,11.3181286]
[1734221462182,2.2711,220.17,220.14,2.06]
[1734221462482,9.0468286,220.22,220.13,6.9868286]
[1734221462878,2.2711,220.17,220.13,6.9868286]
[1734221463086,2.06,220.22,220.15,6.9868286]
[1734221464286,2.2709,220.19,220.15,6.9868286]
[1734221465877,2.2707,220.2,220.15,6.9868286]